[Event "2026 European Womens Championship"]
[Site "Batumi, GE"]
[Date "2026.05.25"]
[Round "1"]
[White "Wagner, Dinara"]
[Black "Odisharia, Teona"]
[Result "1-0"]
[Board "9"]
[TimeControl "5400+30"]
[WhiteFideId "24157570"]
[BlackFideId "13602322"]
[WhiteElo "2408"]
[BlackElo "2167"]
[WhiteTitle "IM"]
[BlackTitle "WFM"]
[WhiteClock "0:26:00"]
[BlackClock "0:06:00"]
[Variant "Standard"]

1. d4 {[%clk 1:30:57]}  Nf6 {[%clk 1:30:50]} 2. c4 {[%clk 1:31:24]}  g6 {[%clk 1:31:13]} 3. Nc3 {[%clk 1:31:50]}  Bg7 {[%clk 1:31:33]}
4. e4 {[%clk 1:32:13]}  d6 {[%clk 1:31:55]} 5. Be2 {[%clk 1:32:39]}  e5 {[%clk 1:21:54]} 6. Nf3 {[%clk 1:31:09]}  O-O {[%clk 1:22:02]}
7. d5 {[%clk 1:31:26]}  a5 {[%clk 1:22:16]} 8. Be3 {[%clk 1:31:42]}  Ng4 {[%clk 1:18:24]} 9. Bg5 {[%clk 1:32:04]}  f6 {[%clk 1:18:20]}
10. Bh4 {[%clk 1:32:31]}  g5 {[%clk 1:17:30]} 11. Bg3 {[%clk 1:32:36]}  Nh6 {[%clk 0:56:39]} 12. Nd2 {[%clk 1:30:49]}  Na6 {[%clk 0:54:08]}
13. f3 {[%clk 1:30:10]}  Nc5 {[%clk 0:42:29]} 14. Nb3 {[%clk 1:18:26]}  b6 {[%clk 0:37:13]} 15. Nxc5 {[%clk 1:15:17]}  bxc5 {[%clk 0:37:35]}
16. Qd3 {[%clk 1:14:17]}  f5 {[%clk 0:37:04]} 17. h3 {[%clk 1:14:06]}  Rb8 {[%clk 0:34:47]} 18. O-O-O {[%clk 1:14:01]}  Bd7 {[%clk 0:33:25]}
19. Nb5 {[%clk 1:07:16]}  Nf7 {[%clk 0:32:50]} 20. Be1 {[%clk 0:59:17]}  c6 {[%clk 0:26:52]} 21. dxc6 {[%clk 0:58:16]}  Bxc6 {[%clk 0:26:59]}
22. Bc3 {[%clk 0:57:27]}  d5 {[%clk 0:26:10]} 23. exd5 {[%clk 0:51:37]}  Bxb5 {[%clk 0:25:52]} 24. cxb5 {[%clk 0:52:03]}  Nd6 {[%clk 0:23:34]}
25. Qc2 {[%clk 0:48:55]}  Nxb5 {[%clk 0:22:35]} 26. Bxb5 {[%clk 0:49:21]}  Rxb5 {[%clk 0:23:01]} 27. d6 {[%clk 0:48:00]}  Qd7 {[%clk 0:21:42]}
28. g4 {[%clk 0:45:48]}  Rb6 {[%clk 0:16:03]} 29. Qd2 {[%clk 0:38:49]}  Kh8 {[%clk 0:13:01]} 30. Qxg5 {[%clk 0:29:14]}  Rxd6 {[%clk 0:09:43]}
31. Rxd6 {[%clk 0:26:34]}  Qxd6 {[%clk 0:10:08]} 32. Rd1 {[%clk 0:27:03]}  Qg6 {[%clk 0:06:44]} 33. Qxg6 {[%clk 0:25:26]}  hxg6 {[%clk 0:07:12]}
34. Rd5 {[%clk 0:20:59]}  e4 {[%clk 0:05:48]} 35. Bxg7+ {[%clk 0:20:28]}  Kxg7 {[%clk 0:06:12]} 36. fxe4 {[%clk 0:20:55]}  fxe4 {[%clk 0:06:26]}
37. Rxc5 {[%clk 0:20:35]}  e3 {[%clk 0:04:19]} 38. Re5 {[%clk 0:19:52]}  Rf3 {[%clk 0:04:10]} 39. Kc2 {[%clk 0:15:59]}  Rxh3 {[%clk 0:04:14]}
40. Rxa5 {[%clk 0:15:24]}  Rh2+ {[%clk 0:03:28]} 41. Kd3 {[%clk 0:04:30]}  e2 {[%clk 0:03:02]} 42. Re5 {[%clk 0:04:20]}  e1=Q {[%clk 0:03:02]}
43. Rxe1 {[%clk 0:04:48]}  Rxb2 {[%clk 0:03:26]} 44. Re2 {[%clk 0:27:35]}  Rb1 {[%clk 0:33:28]} 45. a4 {[%clk 0:26:08]}  Kf6 {[%clk 0:11:42]}
46. Re4 {[%clk 0:25:39]}  g5 {[%clk 0:11:18]} 47. Kc4 {[%clk 0:24:12]}  Rc1+ {[%clk 0:10:58]} 48. Kb5 {[%clk 0:24:38]}  Rf1 {[%clk 0:10:45]}
49. a5 {[%clk 0:24:47]}  Rb1+ {[%clk 0:06:05]} 50. Rb4 {[%clk 0:25:11]}  Ra1 {[%clk 0:06:25]} 51. a6 {[%clk 0:25:30]}  Ke6 {[%clk 0:06:27]}
52. Kb6 {[%clk 0:25:22]}  Kd7 {[%clk 0:06:13]} 53. Kb7 {[%clk 0:25:36]}  Rc1 {[%clk 0:06:13]} 54. a7 {[%clk 0:25:33]}  Rc7+ {[%clk 0:06:00]}
55. Ka6 {[%clk 0:26:00]}  Kd6 {[%clk 0:05:55]} 1-0

[Event "2026 European Womens Championship"]
[Site "Batumi, GE"]
[Date "2026.05.25"]
[Round "1"]
[White "Ismayil, Malak"]
[Black "Atalik, Ekaterina"]
[Result "1/2-1/2"]
[Board "22"]
[TimeControl "5400+30"]
[WhiteFideId "13412604"]
[BlackFideId "4130189"]
[WhiteElo "2122"]
[BlackElo "2372"]
[WhiteTitle "WIM"]
[BlackTitle "IM"]
[WhiteClock "0:01:40"]
[BlackClock "0:20:02"]
[Variant "Standard"]

1. Nf3 {[%clk 1:30:54]}  d5 {[%clk 1:30:41]} 2. b3 {[%clk 1:31:19]}  c5 {[%clk 1:30:35]} 3. Bb2 {[%clk 1:31:44]}  Nc6 {[%clk 1:29:18]}
4. e3 {[%clk 1:31:19]}  a6 {[%clk 1:29:23]} 5. d4 {[%clk 1:28:51]}  Nf6 {[%clk 1:28:28]} 6. Nbd2 {[%clk 1:27:38]}  cxd4 {[%clk 1:25:40]}
7. exd4 {[%clk 1:19:42]}  g6 {[%clk 1:20:41]} 8. Be2 {[%clk 1:17:34]}  Bg7 {[%clk 1:20:48]} 9. O-O {[%clk 1:17:15]}  O-O {[%clk 1:18:59]}
10. Ne5 {[%clk 1:14:24]}  Qb6 {[%clk 1:14:25]} 11. Ndf3 {[%clk 1:05:53]}  Bf5 {[%clk 1:07:49]} 12. c4 {[%clk 0:52:35]}  Rad8 {[%clk 0:44:58]}
13. c5 {[%clk 0:48:50]}  Qa7 {[%clk 0:44:50]} 14. Nxc6 {[%clk 0:45:51]}  bxc6 {[%clk 0:45:16]} 15. Ne5 {[%clk 0:45:29]}  Qb7 {[%clk 0:45:21]}
16. Qe1 {[%clk 0:22:40]}  Nd7 {[%clk 0:39:34]} 17. Nxd7 {[%clk 0:21:49]}  Bxd7 {[%clk 0:38:31]} 18. Qa5 {[%clk 0:21:10]}  Bc8 {[%clk 0:38:52]}
19. Bd3 {[%clk 0:20:35]}  Rde8 {[%clk 0:33:22]} 20. Rae1 {[%clk 0:19:14]}  Bf5 {[%clk 0:25:44]} 21. Qxa6 {[%clk 0:06:36]}  Qxa6 {[%clk 0:25:43]}
22. Bxa6 {[%clk 0:07:02]}  Ra8 {[%clk 0:25:25]} 23. Bb7 {[%clk 0:07:25]}  Rxa2 {[%clk 0:25:05]} 24. Bc3 {[%clk 0:07:27]}  Bd3 {[%clk 0:12:52]}
25. Ra1 {[%clk 0:05:44]}  Rc2 {[%clk 0:13:04]} 26. Rfc1 {[%clk 0:06:08]}  Rxc1+ {[%clk 0:12:31]} 27. Rxc1 {[%clk 0:06:38]}  Bb5 {[%clk 0:12:32]}
28. Ra1 {[%clk 0:06:10]}  Rb8 {[%clk 0:12:17]} 29. Ra7 {[%clk 0:05:24]}  f6 {[%clk 0:08:02]} 30. f4 {[%clk 0:05:08]}  Kf7 {[%clk 0:05:47]}
31. b4 {[%clk 0:05:19]}  Ke6 {[%clk 0:05:00]} 32. Ba6 {[%clk 0:04:21]}  g5 {[%clk 0:03:04]} 33. Bxb5 {[%clk 0:04:32]}  cxb5 {[%clk 0:03:20]}
34. fxg5 {[%clk 0:00:44]}  fxg5 {[%clk 0:03:45]} 35. Kf2 {[%clk 0:00:58]}  Bf6 {[%clk 0:03:01]} 36. Ke3 {[%clk 0:01:06]}  h5 {[%clk 0:02:44]}
37. Ra6+ {[%clk 0:01:00]}  Kd7 {[%clk 0:02:49]} 38. Be1 {[%clk 0:00:53]}  h4 {[%clk 0:02:49]} 39. Kd3 {[%clk 0:00:55]}  Kc7 {[%clk 0:02:12]}
40. Bd2 {[%clk 0:01:03]}  Kb7 {[%clk 0:02:09]} 41. Ra5 {[%clk 0:01:12]}  Kc6 {[%clk 0:02:26]} 42. h3 {[%clk 0:01:22]}  Rg8 {[%clk 0:01:51]}
43. Ra6+ {[%clk 0:01:44]}  Kd7 {[%clk 0:01:04]} 44. Be3 {[%clk 0:01:35]}  Kc7 {[%clk 0:27:49]} 45. Ke2 {[%clk 0:24:44]}  g4 {[%clk 0:27:02]}
46. Bf4+ {[%clk 0:24:51]}  Kd7 {[%clk 0:26:24]} 47. c6+ {[%clk 0:16:58]}  Ke6 {[%clk 0:26:48]} 48. c7+ {[%clk 0:17:01]}  Kd7 {[%clk 0:25:40]}
49. Kd3 {[%clk 0:08:18]}  gxh3 {[%clk 0:25:01]} 50. gxh3 {[%clk 0:08:43]}  Rf8 {[%clk 0:23:57]} 51. Rb6 {[%clk 0:08:08]}  Bxd4 {[%clk 0:19:14]}
52. c8=Q+ {[%clk 0:04:51]}  Rxc8 {[%clk 0:19:39]} 53. Kxd4 {[%clk 0:05:49]}  Rc4+ {[%clk 0:19:50]} 54. Ke3 {[%clk 0:04:22]}  Rxb4 {[%clk 0:19:24]}
55. Rb7+ {[%clk 0:03:43]}  Ke6 {[%clk 0:19:27]} 56. Bg5 {[%clk 0:03:33]}  Kf5 {[%clk 0:19:05]} 57. Bxe7 {[%clk 0:03:47]}  Rb3+ {[%clk 0:19:22]}
58. Kd4 {[%clk 0:04:08]}  Rxh3 {[%clk 0:19:24]} 59. Rxb5 {[%clk 0:04:18]}  Rh1 {[%clk 0:19:23]} 60. Rxd5+ {[%clk 0:04:07]}  Kg4 {[%clk 0:19:47]}
61. Bxh4 {[%clk 0:01:40]}  Rxh4 {[%clk 0:20:02]} 62. Ke4 {[%clk 0:01:27]} 1/2-1/2

[Event "2026 European Womens Championship"]
[Site "Batumi, GE"]
[Date "2026.05.26"]
[Round "2"]
[White "Zherebtsova, Alexandra"]
[Black "Tsolakidou, Stavroula"]
[Result "1/2-1/2"]
[Board "1"]
[TimeControl "5400+30"]
[WhiteFideId "24129518"]
[BlackFideId "4264312"]
[WhiteElo "2242"]
[BlackElo "2455"]
[WhiteTitle "FM"]
[BlackTitle "IM"]
[WhiteClock "0:02:14"]
[BlackClock "0:01:17"]
[Variant "Standard"]

1. d4 {[%clk 1:30:57]}  Nf6 {[%clk 1:30:54]} 2. c4 {[%clk 1:31:24]}  c5 {[%clk 1:31:13]} 3. d5 {[%clk 1:31:26]}  b5 {[%clk 1:31:35]}
4. Nf3 {[%clk 1:31:50]}  b4 {[%clk 1:25:32]} 5. a3 {[%clk 1:28:31]}  g6 {[%clk 1:13:25]} 6. axb4 {[%clk 1:01:51]}  cxb4 {[%clk 1:13:50]}
7. Qd4 {[%clk 0:46:43]}  a5 {[%clk 1:04:49]} 8. e4 {[%clk 0:40:47]}  d6 {[%clk 1:04:31]} 9. e5 {[%clk 0:37:32]}  dxe5 {[%clk 1:03:39]}
10. Nxe5 {[%clk 0:37:39]}  Bg7 {[%clk 1:01:07]} 11. Nd2 {[%clk 0:33:16]}  e6 {[%clk 0:40:31]} 12. d6 {[%clk 0:31:11]}  Nfd7 {[%clk 0:38:18]}
13. Ndf3 {[%clk 0:17:54]}  Bb7 {[%clk 0:32:40]} 14. Bh6 {[%clk 0:11:29]}  Nc6 {[%clk 0:23:28]} 15. Nxc6 {[%clk 0:08:07]}  Bxd4 {[%clk 0:23:51]}
16. Nxd8 {[%clk 0:06:27]}  Bxf3 {[%clk 0:24:04]} 17. gxf3 {[%clk 0:02:44]}  Kxd8 {[%clk 0:21:36]} 18. O-O-O {[%clk 0:01:55]}  Bxf2 {[%clk 0:18:11]}
19. Bd3 {[%clk 0:01:13]}  a4 {[%clk 0:15:38]} 20. Kb1 {[%clk 0:01:00]}  Bc5 {[%clk 0:14:57]} 21. Bf4 {[%clk 0:00:33]}  Ra6 {[%clk 0:12:53]}
22. Be4 {[%clk 0:00:42]}  Kc8 {[%clk 0:10:10]} 23. Bg3 {[%clk 0:00:39]}  Re8 {[%clk 0:09:48]} 24. Rd2 {[%clk 0:00:50]}  f5 {[%clk 0:09:31]}
25. Bc2 {[%clk 0:00:46]}  b3 {[%clk 0:09:15]} 26. Bd1 {[%clk 0:01:14]}  e5 {[%clk 0:09:08]} 27. Be2 {[%clk 0:01:25]}  Rxd6 {[%clk 0:08:49]}
28. Rxd6 {[%clk 0:01:43]}  Bxd6 {[%clk 0:09:16]} 29. c5 {[%clk 0:01:32]}  Nxc5 {[%clk 0:07:39]} 30. Bb5 {[%clk 0:00:52]}  Re7 {[%clk 0:05:54]}
31. Bf2 {[%clk 0:00:35]}  e4 {[%clk 0:01:57]} 32. Bxc5 {[%clk 0:00:51]}  Bxc5 {[%clk 0:02:24]} 33. fxe4 {[%clk 0:01:02]}  fxe4 {[%clk 0:02:00]}
34. Bxa4 {[%clk 0:00:37]}  e3 {[%clk 0:01:58]} 35. Re1 {[%clk 0:00:45]}  Bb4 {[%clk 0:01:06]} 36. Re2 {[%clk 0:01:11]}  Bd2 {[%clk 0:01:05]}
37. Bxb3 {[%clk 0:01:28]}  Rc7 {[%clk 0:01:28]} 38. Be6+ {[%clk 0:00:57]}  Kd8 {[%clk 0:01:38]} 39. b3 {[%clk 0:01:12]}  Ke7 {[%clk 0:01:36]}
40. Bc4 {[%clk 0:01:22]}  Kf6 {[%clk 0:01:09]} 41. Kc2 {[%clk 0:01:28]}  Ke5 {[%clk 0:01:17]} 42. Kd1 {[%clk 0:01:01]}  Kf4 {[%clk 0:01:08]}
43. Rg2 {[%clk 0:01:16]}  Ra7 {[%clk 0:28:19]} 44. Ke2 {[%clk 0:30:32]}  Bb4 {[%clk 0:26:04]} 45. h3 {[%clk 0:23:15]}  Ra2+ {[%clk 0:19:41]}
46. Kf1 {[%clk 0:23:41]}  Ra1+ {[%clk 0:19:52]} 47. Ke2 {[%clk 0:24:05]}  Re1+ {[%clk 0:19:40]} 48. Kd3 {[%clk 0:24:18]}  Rd1+ {[%clk 0:11:01]}
49. Ke2 {[%clk 0:23:01]}  Rd2+ {[%clk 0:08:02]} 50. Kf1 {[%clk 0:23:23]}  Kf3 {[%clk 0:05:48]} 51. Be2+ {[%clk 0:21:28]}  Rxe2 {[%clk 0:06:14]}
52. Rxe2 {[%clk 0:21:55]}  g5 {[%clk 0:06:30]} 53. Rg2 {[%clk 0:15:06]}  h6 {[%clk 0:04:33]} 54. Re2 {[%clk 0:13:14]}  Bd2 {[%clk 0:03:37]}
55. Rh2 {[%clk 0:10:52]}  h5 {[%clk 0:02:01]} 56. Rg2 {[%clk 0:09:18]}  Bc3 {[%clk 0:00:58]} 57. Re2 {[%clk 0:07:56]}  Bd2 {[%clk 0:00:50]}
58. Rg2 {[%clk 0:08:02]}  g4 {[%clk 0:00:38]} 59. hxg4 {[%clk 0:08:16]}  hxg4 {[%clk 0:00:53]} 60. Re2 {[%clk 0:05:01]}  Bc3 {[%clk 0:00:42]}
61. b4 {[%clk 0:04:27]}  Bxb4 {[%clk 0:00:52]} 62. Rf2+ {[%clk 0:04:23]}  Ke4 {[%clk 0:00:58]} 63. Rf7 {[%clk 0:03:21]}  g3 {[%clk 0:00:37]}
64. Ke2 {[%clk 0:02:48]}  Bd6 {[%clk 0:00:50]} 65. Rg7 {[%clk 0:02:14]}  Be5 {[%clk 0:01:17]} 1/2-1/2

[Event "2026 European Womens Championship"]
[Site "Batumi, GE"]
[Date "2026.05.26"]
[Round "2"]
[White "Osmak, Yuliia"]
[Black "Peglau, Charis"]
[Result "0-1"]
[Board "2"]
[TimeControl "5400+30"]
[WhiteFideId "14101602"]
[BlackFideId "16219996"]
[WhiteElo "2451"]
[BlackElo "2238"]
[WhiteTitle "IM"]
[BlackTitle "WFM"]
[WhiteClock "0:01:42"]
[BlackClock "0:03:37"]
[Variant "Standard"]

1. d4 {[%clk 1:30:56]}  Nf6 {[%clk 1:30:52]} 2. c4 {[%clk 1:31:15]}  g6 {[%clk 1:31:13]} 3. Nc3 {[%clk 1:31:12]}  d5 {[%clk 1:31:35]}
4. Nf3 {[%clk 1:28:11]}  Bg7 {[%clk 1:30:40]} 5. h4 {[%clk 1:28:08]}  c6 {[%clk 1:23:40]} 6. cxd5 {[%clk 1:24:11]}  cxd5 {[%clk 1:24:02]}
7. Bf4 {[%clk 1:24:19]}  Nc6 {[%clk 1:22:07]} 8. e3 {[%clk 1:24:34]}  a6 {[%clk 1:13:52]} 9. Be2 {[%clk 1:13:34]}  h5 {[%clk 1:08:52]}
10. Ne5 {[%clk 1:03:22]}  Bf5 {[%clk 1:03:31]} 11. O-O {[%clk 0:58:57]}  Rc8 {[%clk 1:01:25]} 12. Rc1 {[%clk 0:57:58]}  O-O {[%clk 1:00:32]}
13. Qb3 {[%clk 0:48:37]}  Na5 {[%clk 0:55:46]} 14. Qb4 {[%clk 0:48:17]}  Ng4 {[%clk 0:38:36]} 15. Na4 {[%clk 0:36:57]}  Nxe5 {[%clk 0:36:43]}
16. dxe5 {[%clk 0:34:51]}  b5 {[%clk 0:23:37]} 17. Rxc8 {[%clk 0:31:02]}  Bxc8 {[%clk 0:23:58]} 18. Nc3 {[%clk 0:31:28]}  e6 {[%clk 0:18:19]}
19. Bg5 {[%clk 0:24:07]}  Qc7 {[%clk 0:15:25]} 20. Bf6 {[%clk 0:21:44]}  Nc4 {[%clk 0:12:10]} 21. Bxg7 {[%clk 0:14:24]}  Kxg7 {[%clk 0:12:38]}
22. Bxc4 {[%clk 0:14:37]}  bxc4 {[%clk 0:12:32]} 23. f4 {[%clk 0:14:15]}  Bb7 {[%clk 0:08:45]} 24. Ne2 {[%clk 0:13:40]}  Rb8 {[%clk 0:07:46]}
25. Nd4 {[%clk 0:13:35]}  Bc8 {[%clk 0:07:00]} 26. Qa3 {[%clk 0:12:48]}  a5 {[%clk 0:05:10]} 27. Rf2 {[%clk 0:12:46]}  Ba6 {[%clk 0:02:24]}
28. Qc3 {[%clk 0:10:08]}  Qb6 {[%clk 0:01:46]} 29. a3 {[%clk 0:09:41]}  Kf8 {[%clk 0:01:14]} 30. Rc2 {[%clk 0:08:21]}  Ra8 {[%clk 0:00:46]}
31. Qe1 {[%clk 0:07:19]}  Bb7 {[%clk 0:00:46]} 32. Qg3 {[%clk 0:06:36]}  Qd8 {[%clk 0:00:47]} 33. Rf2 {[%clk 0:02:04]}  Qe7 {[%clk 0:00:47]}
34. Nb5 {[%clk 0:00:45]}  Ba6 {[%clk 0:00:56]} 35. Nd6 {[%clk 0:00:51]}  Rd8 {[%clk 0:00:52]} 36. f5 {[%clk 0:00:35]}  exf5 {[%clk 0:00:55]}
37. Qf4 {[%clk 0:00:43]}  Kg7 {[%clk 0:00:49]} 38. Rf3 {[%clk 0:01:01]}  Bc8 {[%clk 0:00:41]} 39. Rg3 {[%clk 0:00:56]}  Kh7 {[%clk 0:00:38]}
40. Rg5 {[%clk 0:01:01]}  Be6 {[%clk 0:00:55]} 41. Rg3 {[%clk 0:26:00]}  Rb8 {[%clk 0:28:52]} 42. Qd4 {[%clk 0:26:15]}  Rb3 {[%clk 0:28:12]}
43. Rf3 {[%clk 0:24:42]}  Rd3 {[%clk 0:24:58]} 44. Qc5 {[%clk 0:20:29]}  Rd2 {[%clk 0:06:33]} 45. Qxa5 {[%clk 0:11:42]}  Rxb2 {[%clk 0:06:56]}
46. Rf4 {[%clk 0:12:03]}  Rb3 {[%clk 0:05:59]} 47. Qc5 {[%clk 0:10:46]}  Rb8 {[%clk 0:05:20]} 48. Kh2 {[%clk 0:07:31]}  Ra8 {[%clk 0:03:54]}
49. Qc6 {[%clk 0:06:39]}  Rxa3 {[%clk 0:03:12]} 50. Ne8 {[%clk 0:06:55]}  Qd8 {[%clk 0:00:57]} 51. Nf6+ {[%clk 0:06:31]}  Kg7 {[%clk 0:01:19]}
52. Rf3 {[%clk 0:03:44]}  Ra8 {[%clk 0:01:15]} 53. Rg3 {[%clk 0:04:04]}  Kh8 {[%clk 0:01:01]} 54. Qc5 {[%clk 0:03:30]}  Qf8 {[%clk 0:01:01]}
55. Qd4 {[%clk 0:03:41]}  Qh6 {[%clk 0:00:54]} 56. Rg5 {[%clk 0:03:58]}  Rc8 {[%clk 0:00:43]} 57. Qc3 {[%clk 0:02:25]}  Qg7 {[%clk 0:00:41]}
58. Rg3 {[%clk 0:01:23]}  Qh6 {[%clk 0:00:42]} 59. Rg5 {[%clk 0:01:34]}  Qg7 {[%clk 0:01:05]} 60. Rg3 {[%clk 0:01:52]}  Qf8 {[%clk 0:01:26]}
61. Kh1 {[%clk 0:00:35]}  Qc5 {[%clk 0:01:22]} 62. Qc1 {[%clk 0:00:55]}  Kg7 {[%clk 0:01:05]} 63. Nxh5+ {[%clk 0:01:08]}  Kf8 {[%clk 0:01:26]}
64. Nf4 {[%clk 0:00:45]}  Ke7 {[%clk 0:01:45]} 65. Qc3 {[%clk 0:00:41]}  Rb8 {[%clk 0:01:51]} 66. h5 {[%clk 0:00:46]}  gxh5 {[%clk 0:02:02]}
67. Rg7 {[%clk 0:00:35]}  Rb3 {[%clk 0:02:11]} 68. Qe1 {[%clk 0:00:38]}  Qxe3 {[%clk 0:01:34]} 69. Qh4+ {[%clk 0:00:42]}  Kd7 {[%clk 0:01:58]}
70. Nxe6 {[%clk 0:00:33]}  Rb1+ {[%clk 0:02:20]} 71. Kh2 {[%clk 0:00:59]}  Qg1+ {[%clk 0:02:33]} 72. Kg3 {[%clk 0:01:09]}  Qe1+ {[%clk 0:02:46]}
73. Kh3 {[%clk 0:01:32]}  Qxh4+ {[%clk 0:02:58]} 74. Kxh4 {[%clk 0:01:56]}  Kxe6 {[%clk 0:03:19]} 75. Rg8 {[%clk 0:01:24]}  c3 {[%clk 0:03:13]}
76. Rc8 {[%clk 0:01:42]}  d4 {[%clk 0:03:37]} 0-1

[Event "2026 European Womens Championship"]
[Site "Batumi, GE"]
[Date "2026.05.26"]
[Round "2"]
[White "Purtseladze, Maka"]
[Black "Fataliyeva, Ulviyya"]
[Result "0-1"]
[Board "3"]
[TimeControl "5400+30"]
[WhiteFideId "13602659"]
[BlackFideId "13403052"]
[WhiteElo "2237"]
[BlackElo "2450"]
[WhiteTitle "IM"]
[BlackTitle "IM"]
[WhiteClock "0:07:44"]
[BlackClock "0:07:52"]
[Variant "Standard"]

1. d4 {[%clk 1:30:56]}  Nf6 {[%clk 1:21:22]} 2. Nf3 {[%clk 1:30:54]}  d5 {[%clk 1:21:27]} 3. c4 {[%clk 1:30:37]}  e6 {[%clk 1:21:43]}
4. Nc3 {[%clk 1:30:52]}  Nbd7 {[%clk 1:22:07]} 5. cxd5 {[%clk 1:23:06]}  exd5 {[%clk 1:21:25]} 6. Bf4 {[%clk 1:11:50]}  Nb6 {[%clk 1:21:45]}
7. e3 {[%clk 1:11:07]}  Bf5 {[%clk 1:21:53]} 8. Rc1 {[%clk 1:05:20]}  c6 {[%clk 1:17:22]} 9. Qb3 {[%clk 1:01:42]}  a5 {[%clk 1:05:48]}
10. a4 {[%clk 0:57:25]}  Bb4 {[%clk 1:04:54]} 11. Be2 {[%clk 0:57:21]}  Ne4 {[%clk 1:01:32]} 12. O-O {[%clk 0:47:06]}  O-O {[%clk 0:58:40]}
13. Nxe4 {[%clk 0:41:36]}  dxe4 {[%clk 0:50:58]} 14. Ne5 {[%clk 0:37:34]}  Be6 {[%clk 0:49:03]} 15. Qc2 {[%clk 0:37:12]}  g5 {[%clk 0:40:25]}
16. Bg3 {[%clk 0:34:54]}  f5 {[%clk 0:40:45]} 17. f3 {[%clk 0:19:18]}  f4 {[%clk 0:37:41]} 18. Bf2 {[%clk 0:17:27]}  Nd5 {[%clk 0:32:18]}
19. fxe4 {[%clk 0:16:36]}  fxe3 {[%clk 0:26:58]} 20. Bg3 {[%clk 0:14:49]}  Nf4 {[%clk 0:27:12]} 21. Bxf4 {[%clk 0:14:42]}  gxf4 {[%clk 0:27:07]}
22. Bc4 {[%clk 0:14:04]}  Bxc4 {[%clk 0:23:37]} 23. Qxc4+ {[%clk 0:14:31]}  Kh8 {[%clk 0:20:54]} 24. Nf3 {[%clk 0:12:42]}  Qe7 {[%clk 0:19:51]}
25. e5 {[%clk 0:11:37]}  Rad8 {[%clk 0:20:09]} 26. Rc2 {[%clk 0:11:44]}  Rd5 {[%clk 0:19:33]} 27. Qd3 {[%clk 0:10:05]}  c5 {[%clk 0:16:32]}
28. Qe4 {[%clk 0:09:27]}  Rfd8 {[%clk 0:15:31]} 29. dxc5 {[%clk 0:09:06]}  Rd1 {[%clk 0:07:57]} 30. Rc1 {[%clk 0:07:32]}  Rxc1 {[%clk 0:07:57]}
31. Rxc1 {[%clk 0:07:44]}  Qxc5 {[%clk 0:07:52]} 0-1

[Event "2026 European Womens Championship"]
[Site "Batumi, GE"]
[Date "2026.05.26"]
[Round "2"]
[White "Javakhishvili, Lela"]
[Black "Skarbarchuk, Tetyana"]
[Result "1/2-1/2"]
[Board "4"]
[TimeControl "5400+30"]
[WhiteFideId "13601458"]
[BlackFideId "14184494"]
[WhiteElo "2442"]
[BlackElo "2236"]
[WhiteTitle "IM"]
[WhiteClock "0:17:00"]
[BlackClock "0:04:58"]
[Variant "Standard"]

1. c4 {[%clk 1:30:54]}  e6 {[%clk 1:30:24]} 2. g3 {[%clk 1:30:43]}  d5 {[%clk 1:30:08]} 3. d4 {[%clk 1:30:54]}  Nf6 {[%clk 1:29:30]}
4. Bg2 {[%clk 1:31:11]}  Bb4+ {[%clk 1:27:33]} 5. Bd2 {[%clk 1:29:59]}  a5 {[%clk 1:27:02]} 6. Nf3 {[%clk 1:30:06]}  O-O {[%clk 1:26:47]}
7. Qc1 {[%clk 1:30:12]}  c5 {[%clk 1:10:35]} 8. dxc5 {[%clk 1:30:14]}  d4 {[%clk 1:08:23]} 9. Bxb4 {[%clk 1:30:09]}  axb4 {[%clk 1:08:48]}
10. Ne5 {[%clk 1:28:14]}  Qc7 {[%clk 1:05:52]} 11. Nd3 {[%clk 1:28:15]}  Na6 {[%clk 1:06:15]} 12. Qf4 {[%clk 1:26:57]}  e5 {[%clk 1:05:00]}
13. Qxe5 {[%clk 1:21:32]}  Qxe5 {[%clk 1:04:19]} 14. Nxe5 {[%clk 1:21:58]}  Nxc5 {[%clk 1:04:41]} 15. Nd2 {[%clk 1:22:05]}  Re8 {[%clk 0:55:08]}
16. Ndf3 {[%clk 1:17:36]}  Nb3 {[%clk 0:34:48]} 17. Rd1 {[%clk 1:16:34]}  Rxa2 {[%clk 0:35:12]} 18. Nd3 {[%clk 1:07:55]}  Bf5 {[%clk 0:32:41]}
19. O-O {[%clk 1:02:26]}  Rxe2 {[%clk 0:25:52]} 20. Nxb4 {[%clk 0:52:58]}  Raxb2 {[%clk 0:25:44]} 21. Nd3 {[%clk 0:52:41]}  Ra2 {[%clk 0:22:38]}
22. Nc1 {[%clk 0:37:48]}  Nxc1 {[%clk 0:19:52]} 23. Nxd4 {[%clk 0:37:42]}  Be4 {[%clk 0:15:03]} 24. Rxc1 {[%clk 0:33:24]}  Red2 {[%clk 0:12:16]}
25. Nb3 {[%clk 0:27:27]}  Rdb2 {[%clk 0:11:32]} 26. Nc5 {[%clk 0:27:30]}  Bxg2 {[%clk 0:11:10]} 27. Kxg2 {[%clk 0:27:50]}  Ng4 {[%clk 0:10:55]}
28. Nd3 {[%clk 0:20:27]}  Rd2 {[%clk 0:09:29]} 29. Rce1 {[%clk 0:20:23]}  g6 {[%clk 0:05:44]} 30. h3 {[%clk 0:19:55]}  Rxd3 {[%clk 0:05:43]}
31. hxg4 {[%clk 0:20:18]}  Rc2 {[%clk 0:06:04]} 32. Re4 {[%clk 0:18:42]}  Rdc3 {[%clk 0:06:07]} 33. Rb1 {[%clk 0:18:19]}  Rxc4 {[%clk 0:06:17]}
34. Re8+ {[%clk 0:17:01]}  Kg7 {[%clk 0:06:41]} 35. Rxb7 {[%clk 0:17:26]}  Rc7 {[%clk 0:04:35]} 36. Rxc7 {[%clk 0:16:46]}  Rxc7 {[%clk 0:04:58]}
37. g5 {[%clk 0:17:00]} 1/2-1/2